fUSD/lending_fUSD_20250326
["ID","MTS","AMOUNT","RATE_DAILY","PERIOD"]
[356685015,1742947831405,-250.0,0.00025,2]
[356685016,1742947831415,-155.1,0.00026849,2]
[356685017,1742947831425,-594.9,0.000392,2]
[356685018,1742947831564,-140.54328847,0.000392,2]
[356685019,1742947831573,-152.91,0.000398,31]
[356685020,1742947831583,-220.15729842,0.00040923,2]
[356685021,1742947831592,-112.44314271,0.00041,14]
[356685022,1742947831670,-38.55685729,0.00041,14]
[356685023,1742947831680,-412.93237449,0.00041,120]
[356685024,1742947831693,-87.06762551,0.00041,120]
[356685025,1742947831703,-1161.15,0.00041023,2]
[356685026,1742947831713,-499.39,0.000415,120]
[356685027,1742947831723,-500.0,0.00041658,120]
[356685028,1742947831735,-220.15729841,0.00041781,2]
[356685029,1742947831747,-150.58,0.00041973,2]
[356685030,1742947831758,-160.45,0.0004216,2]
[356685031,1742947831768,-150.0,0.00042257,7]
[356685032,1742947831779,-152.91,0.000423,33]
[356685033,1742947831789,-152.91,0.000423,33]
[356685034,1742947831798,-155.65,0.00042301,120]
[356685035,1742947831808,-154.9,0.00042344,2]
[356685036,1742947831818,-150.0,0.00042352,2]
[356685037,1742947831827,-552.17,0.00042447,2]
[356685038,1742947831837,-154.9,0.00042456,2]
[356685039,1742947831847,-154.9,0.00042569,2]
[356685040,1742947831857,-166.99,0.00042575,2]
[356685041,1742947831867,-155.1,0.00042583,2]
[356685042,1742947831877,-121.55203306,0.00042638,2]
[356685082,1742947839757,-98.60526535,0.00042638,2]
[356685083,1742947839767,-500.0,0.00042658,120]
[356685084,1742947839777,-550.0,0.00042658,5]
[356685085,1742947839786,-154.9,0.00042682,2]
[356685086,1742947839795,-500.0,0.00042697,31]
[356685087,1742947839804,-500.0,0.00042697,31]
[356685088,1742947839813,-500.0,0.00042697,31]
[356685089,1742947839822,-500.0,0.00042697,31]
[356685090,1742947839832,-500.0,0.00042697,31]
[356685091,1742947839841,-499.07473465,0.00042697,31]
[356685092,1742947839852,-0.92526535,0.00042697,31]
[356685093,1742947839861,-500.0,0.00042697,31]
[356685094,1742947839870,-500.0,0.00042697,31]
[356685095,1742947839879,-500.0,0.00042697,31]
[356685096,1742947839889,-500.0,0.00042697,31]
[356685097,1742947839897,-500.0,0.00042697,31]
[356685098,1742947839906,-500.0,0.00042697,31]
[356685099,1742947839915,-466.90022285,0.00042697,31]
[356685109,1742947842523,-33.09977715,0.00042697,31]
[356685111,1742947842532,-500.0,0.00042697,31]
[356685112,1742947842542,-500.0,0.00042697,31]
[356685113,1742947842552,-500.0,0.00042697,31]
[356685114,1742947842562,-500.0,0.00042697,31]
[356685115,1742947842571,-500.0,0.00042697,31]
[356685116,1742947842580,-500.0,0.00042697,31]
[356685117,1742947842589,-500.0,0.00042697,31]
[356685118,1742947842598,-500.0,0.00042697,31]
[356685119,1742947842608,-332.4511203,0.00042697,31]
[356685120,1742947842619,-5.3920742,0.00042697,31]
[356685121,1742947842628,-500.0,0.00042697,31]
[356685122,1742947842638,-500.0,0.00042697,31]
[356685123,1742947842648,-500.0,0.00042697,31]
[356685124,1742947842657,-500.0,0.00042697,31]
[356685125,1742947842667,-500.0,0.00042697,31]
[356685126,1742947842676,-500.0,0.00042697,31]
[356685127,1742947842686,-500.0,0.00042697,31]
[356685128,1742947842695,-500.0,0.00042697,31]
[356685129,1742947842704,-236.68420742,0.00042697,31]
[356685130,1742947845599,-263.31579258,0.00042697,31]
[356685131,1742947845610,-500.0,0.00042697,31]
[356685132,1742947845619,-500.0,0.00042697,31]
[356685133,1742947845628,-500.0,0.00042697,31]
[356685134,1742947845639,-500.0,0.00042697,31]
[356685135,1742947845648,-500.0,0.00042697,31]
[356685136,1742947845657,-500.0,0.00042697,31]
[356685137,1742947845668,-500.0,0.00042697,31]
[356685138,1742947845684,-500.0,0.00042697,31]
[356685139,1742947845696,-500.0,0.00042697,31]
[356685140,1742947845705,-500.0,0.00042697,31]
[356685141,1742947845714,-500.0,0.00042697,31]
[356685142,1742947845723,-500.0,0.00042697,31]
[356685143,1742947845734,-500.0,0.00042697,31]
[356685144,1742947845743,-500.0,0.00042697,31]
[356685145,1742947845753,-500.0,0.00042697,31]
[356685146,1742947845762,-500.0,0.00042697,31]
[356685147,1742947845772,-79.46198985,0.00042697,31]
[356685162,1742948870400,-218.42002402,0.000239,3]
[356685179,1742949031724,-658.78809102,0.00024,2]
[356685180,1742949031835,-707.47470018,0.00024,2]
[356685181,1742949031891,-735.17047072,0.00024,2]
[356685182,1742949031904,-5717.19428206,0.00024,2]
[356685183,1742949031914,-150.0,0.00024999,2]
[356685184,1742949031923,-300.0,0.00024999,2]
[356685185,1742949031933,-199.23303177,0.00025,2]
[356685186,1742949031942,-1597.97568371,0.00025,2]
[356685187,1742949031951,-255.47005605,0.00025,2]
[356685188,1742949031961,-183.64932942,0.00025,2]
[356685189,1742949031971,-200.0,0.00025,2]
[356685190,1742949031980,-4276.95498082,0.00025,2]
[356685196,1742949037503,-347.42410094,0.000249,4]
[356685197,1742949037512,-1972.15754288,0.00025,2]
[356685198,1742949037523,-1416.61649412,0.00025,2]
[356685199,1742949037562,-3283.67940241,0.00025,2]
[356685200,1742949037573,-1849.37430655,0.00025,2]
[356685201,1742949037618,-27031.64075795,0.00025,2]
[356685202,1742949037728,-17558.82071999,0.00025,2]
[356685204,1742949040019,-4533.05305881,0.00025,2]
[356685222,1742949044173,-322.05961737,0.00025,2]
[356685223,1742949044189,-4869.54789809,0.00025,2]
[356685224,1742949044199,-2921.13804049,0.00025,2]
[356685225,1742949044208,-1022.16662496,0.00025,2]
[356685226,1742949044218,-160.61346083,0.00025,2]
[356685227,1742949044227,-11272.00739491,0.0002501,2]
[356685228,1742949044236,-3244.09998852,0.000251,2]
[356685229,1742949044245,-575.67437629,0.0002599,2]
[356685230,1742949044255,-4336.4013599,0.00026,2]
[356685231,1742949044265,-4433.65,0.00026,2]
[356685232,1742949044274,-14122.68907883,0.000264,2]
[356685233,1742949044284,-204.26,0.00026849,2]
[356685234,1742949044293,-420.0,0.00027082,2]
[356685235,1742949044302,-587.0,0.00029339,2]
[356685236,1742949044311,-243.62773808,0.00029899,2]
[356685237,1742949044321,-181.72980799,0.00029899,2]
[356685238,1742949044331,-6843.7,0.00029899,2]
[356685239,1742949044342,-75296.66635565,0.000299,2]
[356685240,1742949044351,-1603.14772284,0.000299,2]
[356685241,1742949044362,-211.78988839,0.0003,2]
[356685242,1742949044371,-5782.91367546,0.0003,2]
[356685243,1742949044380,-193.32364707,0.0003,2]
[356685244,1742949044389,-823.0,0.00031784,2]
[356685245,1742949044399,-1603.14772283,0.00031833,2]
[356685246,1742949044408,-15504.06503652,0.00032149,2]
[356685247,1742949044418,-212.0,0.00032249,2]
[356685248,1742949044428,-2337.81496455,0.00032249,2]
[356685249,1742949044438,-2440.2375721,0.00032249,2]
[356685250,1742949044448,-80417.91594678,0.00032249,2]
[356685251,1742949044457,-2688.98732281,0.00032249,2]
[356685252,1742949044466,-75854.62012673,0.00032249,2]
[356685253,1742949044475,-909.99973168,0.00032249,2]
[356685254,1742949044484,-265.633567,0.00032249,7]
[356685255,1742949044493,-151.0,0.00032249,7]
[356685256,1742949044503,-204.26,0.00032646,2]
[356685257,1742949044512,-1603.14772283,0.00033766,2]
[356685258,1742949044522,-15504.06503651,0.00033855,2]
[356685259,1742949044531,-1152.0,0.00034433,2]
[356685260,1742949044541,-1610.67284414,0.00035,2]
[356685261,1742949044550,-8923.44194514,0.00035,2]
[356685262,1742949044560,-150.24,0.00035,15]
[356685263,1742949044569,-15504.06503651,0.0003556,2]
[356685264,1742949044579,-435.60251755,0.00035599,2]
[356685265,1742949044592,-1603.14772283,0.00035699,2]
[356685266,1742949044602,-2000.0,0.0003584,4]
[356685267,1742949044611,-435.60251746,0.00036906,2]
[356685268,1742949044621,-5000.0,0.00037,2]
[356685269,1742949044631,-15504.06503651,0.00037266,2]
[356685270,1742949044641,-1613.0,0.00037302,2]
[356685271,1742949044650,-1603.14772283,0.00037632,2]
[356685272,1742949044661,-1067.0,0.000378,3]
[356685273,1742949044671,-2000.0,0.000382,4]
[356685274,1742949044681,-435.60251746,0.00038213,2]
[356685275,1742949044690,-204.26,0.00038443,2]
[356685276,1742949044700,-5552.0,0.000386,5]
[356685277,1742949044710,-1400.81,0.00038809,2]
[356685278,1742949044719,-15504.06503651,0.00038972,2]
[356685279,1742949044729,-435.60251746,0.00039521,2]
[356685280,1742949044738,-1603.14772283,0.00039565,2]
[356685281,1742949044748,-150.0,0.0003995,2]
[356685282,1742949044757,-346.02,0.00040078,2]
[356685283,1742949044767,-151.25,0.00040078,2]
[356685284,1742949044776,-220.11,0.00040078,2]
[356685285,1742949044786,-709.0,0.00040411,5]
[356685286,1742949044795,-2000.0,0.0004056,4]
[356685287,1742949044804,-150.45,0.00040594,2]
[356685288,1742949044813,-15504.06503651,0.00040677,15]
[356685289,1742949044823,-432.97903997,0.000407,2]
[356685290,1742949044832,-152.94,0.000408,31]
[356685291,1742949044841,-435.60251746,0.00040828,2]
[356685292,1742949044850,-150.0,0.00040847,7]
[356685293,1742949044860,-150.99,0.00041,2]
[356685294,1742949044869,-814.73,0.00041,2]
[356685295,1742949044878,-152.0,0.00041,14]
[356685296,1742949044888,-208.81148468,0.00041,60]
[356685297,1742949044897,-1400.81,0.00041073,2]
[356685298,1742949044906,-150.0,0.0004117,2]
[356685299,1742949044916,-153.91,0.00041458,2]
[356685300,1742949044926,-1603.14772283,0.00041498,15]
[356685301,1742949044935,-153.91,0.00041569,2]
[356685302,1742949044945,-153.91,0.00041679,2]
[356685303,1742949044954,-153.91,0.0004179,2]
[356685304,1742949044964,-735.0,0.000419,2]
[356685305,1742949044973,-164.541808,0.000419,14]
[356685306,1742949044983,-153.91,0.000419,2]
[356685307,1742949044992,-153.91,0.00042011,2]
[356685308,1742949045001,-276.08,0.00042065,2]
[356685309,1742949045011,-166.99,0.00042093,2]
[356685310,1742949045020,-153.91,0.00042121,2]
[356685311,1742949045030,-155.65,0.00042137,120]
[356685312,1742949045039,-1399.22,0.00042142,2]
[356685313,1742949045050,-1000.0,0.00042194,2]
[356685314,1742949045059,-792.65,0.00042205,2]
[356685315,1742949045069,-3302.4183133,0.00042209,2]
[356685316,1742949045078,-23900.0,0.0004222,2]
[356685317,1742949045087,-151.912937,0.0004222,14]
[356685318,1742949045096,-151.839962,0.0004222,14]
[356685319,1742949045106,-153.91,0.00042232,2]
[356685320,1742949045115,-250.0,0.00042233,2]
[356685321,1742949045125,-200.0,0.00042236,2]
[356685322,1742949045134,-600.0,0.00042238,120]
[356685323,1742949045143,-14328.81992618,0.0004226,2]
[356685324,1742949045152,-500.0,0.00042282,2]
[356685325,1742949045162,-236.51,0.0004231,120]
[356685326,1742949045171,-153.91,0.00042343,2]
[356685327,1742949045181,-15504.06503651,0.00042383,15]
[356685328,1742949045190,-300.0,0.00042418,2]
[356685329,1742949045200,-153.91,0.00042453,2]
[356685330,1742949045209,-1000.0,0.000425,120]
[356685331,1742949045218,-369.53,0.00042526,2]
[356685332,1742949045227,-153.91,0.00042564,2]
[356685333,1742949045237,-400.0,0.000426,120]
[356685334,1742949045247,-153.91,0.00042674,2]
[356685335,1742949045256,-1705.291,0.00042697,65]
[356685336,1742949045266,-177.076,0.00042697,65]
[356685337,1742949045276,-713.33020746,0.00042697,7]
[356685338,1742949045286,-200.0,0.00042697,7]
[356685339,1742949045296,-824.76164,0.00042697,72]
[356685340,1742949045306,-200.0,0.00042697,7]
[356685341,1742949045316,-153.91,0.00042785,2]
[356685342,1742949045326,-154.9,0.00042795,2]
[356685343,1742949045336,-152.0,0.00042842,3]
[356685344,1742949045345,-150.51,0.00042878,2]
[356685345,1742949045355,-166.02,0.00042883,120]
[356685347,1742949045364,-13954.2598925,0.00042888,120]
[356685348,1742949045374,-153.91,0.00042895,2]
[356685349,1742949045383,-154.9,0.00042908,2]
[356685350,1742949045394,-2000.0,0.0004292,8]
[356685352,1742949045403,-157.57,0.00042966,30]
[356685354,1742949045414,-4384.60102109,0.00043,120]
[356685356,1742949045423,-953.91422,0.00043,120]
[356685358,1742949045433,-14204.72277837,0.00043,7]
[356685360,1742949045443,-500.0,0.00043,120]
[356685361,1742949045452,-152.94,0.00043,33]
[356685362,1742949045462,-152.94,0.00043,33]
[356685363,1742949045471,-153.91,0.00043006,2]
[356685364,1742949045589,-154.9,0.00043021,2]
[356685365,1742949045599,-153.91,0.00043116,2]
[356685366,1742949045609,-200.0,0.00043124,7]
[356685367,1742949045620,-200.0,0.00043124,7]
[356685368,1742949045631,-154.9,0.00043134,2]
[356685369,1742949045641,-150.45,0.0004317,2]
[356685370,1742949045650,-154.9,0.00043247,2]
[356685371,1742949045660,-1400.81,0.00043337,2]
[356685372,1742949045673,-154.9,0.0004336,2]
[356685373,1742949045682,-151.0,0.0004337,14]
[356685374,1742949045691,-151.0,0.0004337,14]
[356685375,1742949045702,-151.0,0.0004337,14]
[356685376,1742949045712,-162.579683,0.0004337,14]
[356685377,1742949045721,-151.0,0.0004337,14]
[356685378,1742949045731,-151.0,0.0004337,14]
[356685379,1742949045741,-167.47,0.00043424,2]
[356685380,1742949045750,-1603.14772283,0.00043431,15]
[356685381,1742949045759,-150.0,0.0004345,2]
[356685382,1742949045769,-154.9,0.00043473,2]
[356685383,1742949045778,-200.0,0.00043555,7]
[356685384,1742949045791,-200.0,0.00043555,7]
[356685385,1742949045801,-154.9,0.00043585,2]
[356685386,1742949045811,-463.1696,0.00043599,30]
[356685387,1742949045820,-151.47624096,0.00043644,120]
[356685388,1742949045829,-300.0,0.00043687,2]
[356685389,1742949045839,-154.9,0.00043698,2]
[356685390,1742949045848,-756.829,0.000437,2]
[356685391,1742949045858,-239.56690331,0.00043797,120]
[356685392,1742949045867,-560.6,0.000438,120]
[356685393,1742949045876,-1004.0,0.000438,15]
[356685394,1742949045886,-200.0,0.000438,7]
[356685395,1742949045895,-200.0,0.000438,7]
[356685396,1742949045905,-800.0,0.000438,15]
[356685397,1742949045915,-151.0,0.00043806,14]
[356685398,1742949045924,-209.8410811,0.00043806,2]
[356685399,1742949045934,-1211.5820028,0.00043806,2]
[356685400,1742949045943,-12195.7978858,0.00043806,2]
[356685401,1742949045952,-569.0483637,0.00043806,2]
[356685402,1742949045961,-5656.5476873,0.00043806,2]
[356685403,1742949045971,-209.84108219,0.00043806,2]
[356685404,1742949045980,-688.2742414,0.00043806,2]
[356685405,1742949045990,-154.9,0.00043811,2]
[356685406,1742949046000,-151.47624096,0.00043836,120]
[356685407,1742949046009,-500.0,0.00043836,31]
[356685408,1742949046019,-500.0,0.00043836,31]
[356685409,1742949046028,-500.0,0.00043836,31]
[356685410,1742949046037,-500.0,0.00043836,31]
[356685411,1742949046047,-500.0,0.00043836,31]
[356685413,1742949046057,-500.0,0.00043836,31]
[356685414,1742949046066,-500.0,0.00043836,31]
[356685415,1742949046075,-500.0,0.00043836,31]
[356685416,1742949046084,-216.47332797,0.00043836,31]
[356685417,1742949046093,-500.0,0.00043836,31]
[356685418,1742949046103,-500.0,0.00043836,31]
[356685419,1742949046112,-500.0,0.00043836,31]
[356685420,1742949046121,-500.0,0.00043836,31]
[356685421,1742949046131,-500.0,0.00043836,31]
[356685422,1742949046140,-500.0,0.00043836,31]
[356685423,1742949046149,-500.0,0.00043836,31]
[356685424,1742949046158,-500.0,0.00043836,31]
[356685425,1742949046168,-500.0,0.00043836,31]
[356685426,1742949046177,-500.0,0.00043836,31]
[356685427,1742949046187,-236.70653383,0.00043836,60]
[356685428,1742949046197,-500.0,0.00043836,120]
[356685429,1742949046206,-500.0,0.00043836,120]
[356685430,1742949046215,-500.0,0.00043836,120]
[356685431,1742949046224,-500.0,0.00043836,120]
[356685432,1742949046233,-500.0,0.00043836,120]
[356685433,1742949046242,-500.0,0.00043836,120]
[356685434,1742949046251,-500.0,0.00043836,120]
[356685435,1742949046260,-500.0,0.00043836,120]
[356685436,1742949046269,-450.06477879,0.00043836,120]
[356685437,1742949046278,-161.07345169,0.0004388,28]
[356685438,1742949046287,-2276.35383939,0.0004388,110]
[356685439,1742949046296,-486.0,0.0004389,2]
[356685440,1742949046306,-876.4260603,0.0004389,20]
[356685441,1742949046315,-876.4260603,0.00043891,20]
[356685442,1742949046324,-876.4260603,0.00043891,20]
[356685443,1742949046333,-858.0841536,0.000439,13]
[356685444,1742949046342,-1700.0,0.000439,16]
[356685445,1742949046352,-154.9,0.00043924,2]
[356685446,1742949046362,-150.51,0.0004396,2]
[356685447,1742949046371,-87578.3118607,0.0004397,3]
[356685448,1742949046380,-150.51,0.0004397,2]
[356685449,1742949046389,-2624.0,0.00043973,120]
[356685450,1742949046398,-4780.0,0.00043973,120]
[356685451,1742949046407,-153.628949,0.0004398,14]
[356685452,1742949046417,-151.0,0.0004398,14]
[356685453,1742949046426,-151.694581,0.0004398,14]
[356685454,1742949046435,-152.894306,0.0004398,14]
[356685455,1742949046444,-151.0,0.0004398,14]
[356685456,1742949046453,-151.0,0.0004398,14]
[356685457,1742949046462,-151.0,0.0004398,14]
[356685458,1742949046472,-151.0,0.0004398,14]
[356685459,1742949046481,-151.0,0.0004398,14]
[356685460,1742949046490,-151.0,0.0004398,14]
[356685461,1742949046499,-151.0,0.0004398,14]
[356685462,1742949046508,-151.0,0.0004398,14]
[356685463,1742949046517,-151.0,0.0004398,14]
[356685464,1742949046526,-151.0,0.0004398,14]
[356685465,1742949046535,-151.0,0.0004398,14]
[356685466,1742949046545,-151.0,0.0004398,14]
[356685467,1742949046554,-43789.1559303,0.0004398,3]
[356685468,1742949046563,-150.51,0.0004398,2]
[356685469,1742949046573,-150.51,0.0004398,2]
[356685470,1742949046582,-150.51,0.0004398,2]
[356685471,1742949046595,-150.51,0.0004398,2]
[356685472,1742949046605,-150.51,0.0004398,2]
[356685473,1742949046614,-150.51,0.0004398,2]
[356685474,1742949046623,-150.51,0.0004398,2]
[356685475,1742949046633,-150.51,0.0004398,2]
[356685476,1742949046643,-3767.12080504,0.0004398,7]
[356685477,1742949046652,-152.027966,0.0004399,14]
[356685478,1742949046662,-151.0,0.0004399,14]
[356685479,1742949046671,-151.0,0.0004399,14]
[356685480,1742949046681,-151.0,0.0004399,14]
[356685481,1742949046690,-155.262536,0.0004399,14]
[356685482,1742949046699,-151.0,0.0004399,14]
[356685483,1742949046709,-151.0,0.0004399,14]
[356685484,1742949046718,-151.0,0.0004399,14]
[356685485,1742949046727,-151.0,0.0004399,14]
[356685486,1742949046736,-151.0,0.0004399,14]
[356685487,1742949046745,-204.770487,0.0004399,14]
[356685488,1742949046756,-372207.825408,0.0004399,3]
[356685489,1742949046765,-529.99925426,0.0004399,3]
[356685490,1742949047505,-1116.67114393,0.000249,2]
[356685491,1742949047514,-535.382312,0.00032249,7]
[356685492,1742949047523,-535.382312,0.00037266,7]
[356685493,1742949047533,-435.60251746,0.00042135,2]
[356685494,1742949047542,-11677.57072729,0.0004399,3]
[356685510,1742950231947,-250.0,0.00025,2]
[356685511,1742950231956,-153.71,0.00026849,2]
[356685512,1742950231967,-300.0,0.00027,2]
[356685513,1742950231977,-350.0,0.00029,2]
[356685514,1742950231987,-313.33497241,0.00031,2]
[356685516,1742950237780,-86.66502759,0.00031,2]
[356685517,1742950237789,-450.0,0.00033,2]
[356685518,1742950237799,-313.03497241,0.00035,2]
[356685519,1742950237810,-186.96502759,0.00035,2]
[356685520,1742950237819,-550.0,0.00037,2]
[356685521,1742950237829,-153.71,0.00037863,2]
[356685522,1742950237838,-600.0,0.00039,2]
[356685523,1742950237848,-650.0,0.00041,2]
[356685524,1742950237857,-303.15484468,0.00041895,2]
[356685525,1742950237867,-150.45,0.0004196,2]
[356685526,1742950237876,-499.02012773,0.00042,60]
[356685527,1742950237888,-956.163,0.00042,60]
[356685528,1742950237907,-871.5,0.00042,60]
[356685534,1742950239899,-335.84329744,0.000419,9]
[356685535,1742950240034,-356.34687227,0.00042,60]
[356685536,1742950240046,-1119.37,0.00042208,2]
[356685537,1742950240056,-276.08,0.00042423,2]
[356685538,1742950240067,-155.65,0.0004252,120]
[356685539,1742950240077,-500.0,0.000429,5]
[356685540,1742950240086,-500.0,0.00042914,31]
[356685541,1742950240096,-500.0,0.00042914,31]
[356685542,1742950240105,-500.0,0.00042914,31]
[356685543,1742950240115,-542.69027218,0.00042914,31]
[356685544,1742950240124,-500.0,0.00042914,31]
[356685545,1742950240134,-500.0,0.00042914,31]
[356685546,1742950240143,-500.0,0.00042914,31]
[356685547,1742950240153,-500.0,0.00042914,31]
[356685548,1742950240163,-2021.08354254,0.00042915,2]
[356685549,1742950240179,-13487.67194214,0.00042915,2]
[356685550,1742950240190,-1262.11203737,0.00042915,2]
[356685551,1742950240201,-7129.13247795,0.00042915,2]
[356685552,1742950240211,-1000.0,0.00042976,2]
[356685553,1742950240220,-423.54,0.00042982,2]
[356685554,1742950240229,-250.0,0.00042982,2]
[356685555,1742950240239,-1000.0,0.00042995,120]
[356685556,1742950240248,-274.08,0.00043,120]
[356685557,1742950240257,-700.0,0.00043,2]
[356685558,1742950240267,-197.15,0.00043,60]
[356685559,1742950240275,-12.36295172,0.00043021,120]
[356685560,1742950241981,-0.00791516,0.00043021,120]
[356685577,1742950603770,-195.4725,0.00032152,2]
[356685583,1742951006981,920.80081693,0.00032254,120]
[356685584,1742951013919,980.24592951,0.00032254,120]
[356685587,1742951336889,-152.37,0.00025,2]
[356685602,1742951432012,-97.63,0.00025,2]
[356685603,1742951432023,-155.1,0.00026849,2]
[356685604,1742951432033,-300.0,0.00027,2]
[356685605,1742951432043,-350.0,0.00029,2]
[356685606,1742951432053,-400.0,0.00031,2]
[356685607,1742951432063,-176.95725,0.00031734,2]
[356685608,1742951432071,-1000.0,0.00032254,7]
[356685609,1742951432081,-1000.0,0.00032254,8]
[356685610,1742951432090,-1000.0,0.00032254,9]
[356685611,1742951432099,-1000.0,0.00032254,10]
[356685612,1742951432108,-1000.0,0.00032254,11]
[356685613,1742951432118,-1000.0,0.00032254,12]
[356685614,1742951432128,-1000.0,0.00032254,13]
[356685615,1742951432138,-1000.0,0.00032254,14]
[356685616,1742951432147,-1000.0,0.00032254,15]
[356685617,1742951432156,-1009.92995037,0.00032254,16]
[356685618,1742951432165,-324.64852082,0.000329,6]
[356685619,1742951432175,-450.0,0.00033,2]
[356685620,1742951432184,-500.0,0.00035,2]
[356685621,1742951432195,-428.67,0.0003589,2]
[356685622,1742951432204,-1364.232,0.000363,44]
[356685623,1742951432214,-177.077,0.000363,44]
[356685624,1742951432224,-980.24592951,0.00038,120]
[356685625,1742951432233,-162.92,0.00039061,120]
[356685626,1742951432243,-1190.69,0.00039924,2]
[356685627,1742951432253,-980.24592951,0.0004,120]
[356685628,1742951432262,-150.45,0.00040523,2]
[356685629,1742951432272,-150.0,0.000406,4]
[356685630,1742951432282,-154.9,0.00040847,2]
[356685631,1742951432295,-895.49,0.00041836,2]
[356685632,1742951432305,-449.18780802,0.00041986,31]
[356685633,1742951432315,-203.949756,0.00041987,8]
[356685634,1742951432324,-7648.08806326,0.00041987,8]
[356685635,1742951432334,-23900.0,0.00041987,2]
[356685636,1742951432344,-1000.0,0.0004199,2]
[356685637,1742951432354,-1190.69,0.00042188,2]
[356685638,1742951432363,-166.99,0.00042485,2]
[356685639,1742951432373,-374.02449532,0.0004257,2]
[356685640,1742951432383,-682.6430536,0.0004266,4]
[356685641,1742951432392,-352.95,0.00042813,2]
[356685642,1742951432401,-250.0,0.00042814,2]
[356685643,1742951432411,-5791.44714579,0.00042903,2]
[356685644,1742951432420,-189.2,0.00042907,120]
[356685645,1742951432430,-687.30137,0.00042914,73]
[356685646,1742951432440,-1960.49185902,0.00043,120]
[356685647,1742951432449,-2000.0,0.00043,90]
[356685648,1742951432459,-200.0,0.00043021,7]
[356685649,1742951432468,-572.43422831,0.00043147,2]
[356685650,1742951432478,-2989.45164113,0.00043446,30]
[356685651,1742951432488,-181.08996539,0.0004345,8]
[356685652,1742951432501,-200.0,0.00043451,7]
[356685653,1742951432511,-4032.574,0.00043481,2]
[356685655,1742951432520,-216.189,0.00043481,2]
[356685656,1742951432529,-1028.401,0.00043481,2]
[356685658,1742951432539,-1000.0,0.000435,120]
[356685660,1742951432548,-1075.26090191,0.00043561,120]
[356685662,1742951432557,-5013.92671963,0.0004365,15]
[356685664,1742951432567,-320.62954462,0.0004365,15]
[356685665,1742951432576,-1244.95014378,0.0004365,15]
[356685667,1742951432585,-161.38576211,0.0004365,28]
[356685669,1742951432595,-1180.4038,0.0004369,2]
[356685671,1742951432605,-500.0,0.000437,10]
[356685673,1742951432613,-223.661,0.00043724,2]
[356685674,1742951432623,-268.0219,0.00043724,2]
[356685676,1742951432632,-211.1327,0.00043724,2]
[356685678,1742951432641,-157.8016,0.00043724,2]
[356685680,1742951432650,-6654.5173,0.00043724,2]
[356685682,1742951432660,-193853.98268776,0.00043724,2]
[356685890,1742951440333,-216.25041666,0.00043723,31]
[356685891,1742951440343,-1313.1626734,0.00043724,2]
[356685892,1742951440504,-293.22318818,0.00043724,2]
[356685911,1742951444348,-8642.37986801,0.00043724,2]
[356685912,1742951444359,-155815.02898265,0.00043724,2]
[356685913,1742951444369,-980.10176426,0.0004375,2]
[356685914,1742951444377,-3881.4179,0.0004377,2]
[356685915,1742951444388,-2500.0,0.0004378,2]
[356685916,1742951444400,-1000.0,0.0004378,2]
[356685917,1742951444409,-6260.6321,0.0004379,2]
[356685918,1742951444418,-3765.23341235,0.0004379,2]
[356685921,1742951446243,-2822.31190964,0.0004379,2]